fUSD/lending_fUSD_20240625
["ID","MTS","AMOUNT","RATE_DAILY","PERIOD"]
[330414949,1719356209165,151.062707,0.00025,69]
[330414950,1719356209693,151.062707,0.00025,69]
[330414951,1719356213958,151.062707,0.00025,70]
[330414952,1719356214680,151.062707,0.00025,70]
[330414953,1719356215361,151.062707,0.00025,70]
[330414954,1719356215727,151.062707,0.00025,70]
[330414955,1719356216277,151.062707,0.00025,70]
[330414956,1719356219500,151.062707,0.00025,71]
[330414957,1719356220002,151.062707,0.00025,71]
[330414958,1719356220502,151.062707,0.00025,71]
[330414959,1719356221704,151.062707,0.00025,71]
[330414960,1719356221775,151.062707,0.00025,71]
[330414961,1719356224779,151.062707,0.00025,72]
[330414962,1719356225290,151.062707,0.00025,72]
[330414963,1719356225781,151.062707,0.00025,72]
[330414964,1719356226301,151.062707,0.00025,72]
[330414965,1719356226814,151.062707,0.00025,72]
[330414966,1719356230205,151.062707,0.00025,75]
[330414967,1719356231829,151.062707,0.00025,75]
[330414968,1719356232657,151.062707,0.00025,75]
[330414969,1719356232760,151.062707,0.00025,75]
[330414970,1719356232835,151.062707,0.00025,75]
[330414971,1719356236034,151.062707,0.00025,76]
[330414972,1719356236691,151.062707,0.00025,76]
[330414973,1719356237034,151.062707,0.00025,76]
[330414974,1719356237739,151.062707,0.00025,76]
[330414975,1719356238110,151.062707,0.00025,76]
[330414976,1719356243179,151.062707,0.00025,77]
[330414977,1719356243566,151.062707,0.00025,77]
[330414978,1719356244065,151.062707,0.00025,77]
[330414979,1719356244573,151.062707,0.00025,77]
[330414980,1719356245074,151.062707,0.00025,77]
[330414981,1719356254585,151.062707,0.00025,78]
[330414982,1719356255448,151.062707,0.00025,78]
[330414983,1719356255969,151.062707,0.00025,78]
[330414984,1719356256522,151.062707,0.00025,78]
[330414985,1719356257308,151.062707,0.00025,78]
[330414986,1719356258717,151.062707,0.00025,78]
[330414987,1719356267863,151.062707,0.00025,79]
[330414988,1719356268611,151.062707,0.00025,79]
[330414989,1719356269233,151.062707,0.00025,79]
[330414990,1719356269864,151.062707,0.00025,79]
[330414991,1719356277084,151.062707,0.00025,79]
[330414992,1719356277743,151.062707,0.00025,79]
[330414993,1719356338269,171.43086929,5e-05,2]
[330414994,1719356357205,151.062707,0.00025,80]
[330414995,1719356379729,2199.11898559,6.061e-05,2]
[330414996,1719356439738,2346.60064276,7.347e-05,2]
[330414997,1719356441856,290.25999169,7.347e-05,2]
[330414998,1719356477782,290.25999169,8.905e-05,2]
[330414999,1719356482438,183.57425054,8.905e-05,2]
[330415000,1719356496878,9098.11799233,8.905e-05,2]
[330415002,1719356531980,25234.17230347,0.00010794,2]
[330415003,1719356546021,657.84738546,0.00010794,2]
[330415004,1719356551831,717.06476617,0.00010794,2]
[330415005,1719356566172,3106.94505996,0.00010794,2]
[330415006,1719356568314,1012.70730422,0.00010794,2]
[330415007,1719356568385,9682.62719541,0.00010794,2]
[330415008,1719356570215,3789.55797518,0.00010794,2]
[330415009,1719356570258,1251.41053276,0.00010794,2]
[330415010,1719356570753,2198.85723835,0.00013083,2]
[330415011,1719356576619,5595.11813478,0.00013083,2]
[330415012,1719356578057,4454.52980697,0.00013083,2]
[330415013,1719356579624,1263.2464365,0.00013083,2]
[330415014,1719356580313,1269.62890364,0.00013083,2]
[330415015,1719356583098,3964.57243593,0.00015,2]
[330415016,1719356584516,7436.15892644,0.000145,2]
[330415017,1719356587252,2828.45274486,0.00013083,2]
[330415018,1719356592645,657.84738546,0.00013083,2]
[330415019,1719356596369,5000.0,0.00015,2]
[330415020,1719356601776,717.06476617,0.00013083,2]
[330415021,1719356614300,1012.70730422,0.00013083,2]
[330415022,1719356616392,-302.6899,0.00030527,30]
[330415023,1719356616414,-980.0,0.00030527,30]
[330415024,1719356616443,-926.36020539,0.00030527,60]
[330415025,1719356616468,-1000.0,0.00030527,30]
[330415026,1719356616490,-1000.0,0.00030527,30]
[330415027,1719356616512,-1000.0,0.00030527,30]
[330415028,1719356616534,-452.27848955,0.00030527,30]
[330415029,1719356616556,-1000.0,0.00030527,30]
[330415030,1719356616578,-1000.0,0.00030527,30]
[330415031,1719356616600,-1000.0,0.00030527,30]
[330415032,1719356616622,-1000.0,0.00030527,30]
[330415033,1719356616647,-1000.0,0.00030527,30]
[330415034,1719356616672,-539.78033316,0.00030527,30]
[330415035,1719356616697,-1000.0,0.00030527,30]
[330415036,1719356616719,-1000.0,0.00030527,120]
[330415037,1719356616742,-1000.0,0.00030527,30]
[330415038,1719356616765,-1000.0,0.00030527,60]
[330415039,1719356616787,-1000.0,0.00030527,60]
[330415040,1719356616811,-1000.0,0.00030527,30]
[330415041,1719356616834,-1000.0,0.00030527,120]
[330415042,1719356616858,-1000.0,0.00030527,30]
[330415043,1719356616880,-1000.0,0.00030527,30]
[330415044,1719356616903,-1000.0,0.00030527,60]
[330415045,1719356616927,-1000.0,0.00030527,60]
[330415046,1719356616950,-1000.0,0.00030527,30]
[330415047,1719356616974,-1000.0,0.00030527,60]
[330415048,1719356616998,-190.0,0.00030527,30]
[330415049,1719356617021,-190.0,0.00030527,30]
[330415050,1719356617045,-190.0,0.00030527,30]
[330415051,1719356617068,-1000.0,0.00030527,30]
[330415052,1719356617090,-1000.0,0.00030527,60]
[330415053,1719356617114,-1000.0,0.00030527,30]
[330415054,1719356617137,-1000.0,0.00030527,30]
[330415055,1719356617159,-1000.0,0.00030527,60]
[330415056,1719356617183,-1000.0,0.00030527,30]
[330415057,1719356617209,-1000.0,0.00030527,120]
[330415058,1719356617233,-1000.0,0.00030527,30]
[330415059,1719356617256,-1000.0,0.00030527,30]
[330415060,1719356617282,-1000.0,0.00030527,60]
[330415061,1719356617305,-1000.0,0.00030527,30]
[330415062,1719356617331,-1000.0,0.00030527,30]
[330415063,1719356617355,-1000.0,0.00030527,60]
[330415064,1719356617377,-1000.0,0.00030527,30]
[330415065,1719356617399,-1000.0,0.00030527,30]
[330415066,1719356617768,-1000.0,0.00030527,60]
[330415067,1719356617791,-1000.0,0.00030527,60]
[330415068,1719356617814,-1000.0,0.00030527,30]
[330415069,1719356617836,-1000.0,0.00030527,60]
[330415070,1719356617860,-1000.0,0.00030527,60]
[330415071,1719356617883,-1000.0,0.00030527,30]
[330415072,1719356617906,-1000.0,0.00030527,60]
[330415073,1719356617929,-1000.0,0.00030527,30]
[330415074,1719356617952,-1000.0,0.00030527,30]
[330415075,1719356617975,-1000.0,0.00030527,30]
[330415076,1719356617998,-1000.0,0.00030527,30]
[330415077,1719356618021,-1000.0,0.00030527,30]
[330415078,1719356618043,-1000.0,0.00030527,60]
[330415079,1719356618066,-1000.0,0.00030527,60]
[330415080,1719356618090,-1039.46,0.00030527,60]
[330415081,1719356618115,-1079.81309657,0.00030527,90]
[330415082,1719356618138,-482.38003495,0.00030527,30]
[330415083,1719356618162,-999.999991,0.00030527,120]
[330415084,1719356618186,-526.60564334,0.00030527,60]
[330415085,1719356618210,-360.51897914,0.00030527,30]
[330415086,1719356618234,-833.26816903,0.00030527,30]
[330415087,1719356618256,-1000.0,0.00030527,30]
[330415088,1719356618284,-1166.95834947,0.00030527,120]
[330415089,1719356618307,-697.77988265,0.00030527,30]
[330415090,1719356618333,-1515.84690785,0.00030527,30]
[330415091,1719356618357,-971.41597447,0.00030527,120]
[330415092,1719356618380,-1267.5304213,0.00030527,120]
[330415093,1719356618402,-805.57062543,0.00030527,60]
[330415094,1719356618424,-1037.27178341,0.00030527,120]
[330415095,1719356618446,-816.19554804,0.00030527,30]
[330415096,1719356618468,-824.00227717,0.00030527,30]
[330415097,1719356618491,-658.8762947,0.00030527,30]
[330415098,1719356618513,-348.2470381,0.00030527,120]
[330415099,1719356618535,-542.98582172,0.00030527,120]
[330415100,1719356618557,-935.78517287,0.00030527,120]
[330415101,1719356618578,-887.56806149,0.00030527,30]
[330415102,1719356618601,-1343.99899775,0.00030527,60]
[330415103,1719356618623,-197.16231358,0.00030527,30]
[330415104,1719356618645,-916.93609748,0.00030527,30]
[330415105,1719356618668,-989.30506737,0.00030527,120]
[330415106,1719356618691,-195.63398101,0.00030527,30]
[330415107,1719356618713,-260.31734501,0.00030527,31]
[330415108,1719356618734,-941.97437961,0.00030527,120]
[330415109,1719356618756,-332.61748403,0.00030527,30]
[330415110,1719356618778,-1102.77755086,0.00030527,120]
[330415111,1719356618800,-420.90816057,0.00030527,120]
[330415112,1719356618822,-500.0,0.00030527,30]
[330415113,1719356618845,-531.50985522,0.00030527,120]
[330415114,1719356618868,-821.06193978,0.00030527,120]
[330415115,1719356618890,-989.19830516,0.00030527,120]
[330415116,1719356618911,-232.15520947,0.00030527,60]
[330415117,1719356618934,-1056.45393953,0.00030527,120]
[330415118,1719356618956,-1326.67014369,0.00030527,120]
[330415119,1719356618978,-968.81138187,0.00030527,120]
[330415120,1719356619000,-1347.19516389,0.00030527,120]
[330415121,1719356619023,-818.73759719,0.00030527,120]
[330415122,1719356619046,-189.85132593,0.00030527,120]
[330415123,1719356619071,-1327.89529821,0.00030527,120]
[330415124,1719356619096,-570.60769913,0.00030527,120]
[330415125,1719356619120,-852.07974753,0.00030527,120]
[330415126,1719356619144,-179.57453334,0.00030527,30]
[330415127,1719356619167,-257.94634533,0.00030527,30]
[330415128,1719356619193,-918.5017987,0.00030527,120]
[330415129,1719356619218,-800.36718705,0.00030527,120]
[330415130,1719356619242,-843.42642421,0.00030527,30]
[330415131,1719356619266,-3249.40840426,0.00030527,120]
[330415132,1719356619295,-160.17061657,0.00030527,120]
[330415133,1719356619321,-945.17984715,0.00030527,120]
[330415134,1719356619347,-1305.32384963,0.00030527,120]
[330415135,1719356619374,-192.78616055,0.00030527,30]
[330415136,1719356619464,-679.63778833,0.00030527,120]
[330415137,1719356619489,-798.63964443,0.00030527,30]
[330415138,1719356619514,-526.39452982,0.00030527,120]
[330415139,1719356619539,-155.87751156,0.00030527,120]
[330415140,1719356619563,-252.51152197,0.00030527,30]
[330415141,1719356619587,-345.41505414,0.00030527,60]
[330415142,1719356619610,-198.86258867,0.00030527,30]
[330415143,1719356619635,-519.07288077,0.00030527,120]
[330415144,1719356619660,-1405.99949913,0.00030527,120]
[330415145,1719356619685,-1497.10559757,0.00030527,30]
[330415146,1719356619710,-153.56532656,0.00030527,30]
[330415147,1719356619734,-1391.76862658,0.00030527,30]
[330415148,1719356619759,-345.54605887,0.00030527,30]
[330415149,1719356619783,-1091.67008383,0.00030527,30]
[330415150,1719356619808,-285.8316289,0.00030527,30]
[330415151,1719356619832,-907.32090826,0.00030527,120]
[330415152,1719356619857,-192.428906,0.00030527,120]
[330415153,1719356619882,-209.24092566,0.00030527,120]
[330415154,1719356619907,-266.0,0.00030527,30]
[330415155,1719356619933,-1000.0,0.00030527,30]
[330415156,1719356619958,-800.0,0.00030527,120]
[330415157,1719356619983,-1000.0,0.00030527,30]
[330415158,1719356620009,-1000.0,0.00030527,30]
[330415159,1719356620034,-1000.0,0.00030527,30]
[330415160,1719356620059,-1000.0,0.00030527,30]
[330415161,1719356620083,-1000.0,0.00030527,30]
[330415162,1719356620108,-1000.0,0.00030527,30]
[330415163,1719356620132,-1000.0,0.00030527,30]
[330415164,1719356620156,-1000.0,0.00030527,30]
[330415165,1719356620181,-1000.0,0.00030527,30]
[330415166,1719356620210,-1000.0,0.00030527,30]
[330415167,1719356620236,-1000.0,0.00030527,30]
[330415168,1719356620260,-1000.0,0.00030527,30]
[330415169,1719356620287,-1000.0,0.00030527,30]
[330415170,1719356620311,-1000.0,0.00030527,30]
[330415171,1719356620337,-1000.0,0.00030527,30]
[330415172,1719356620364,-1000.0,0.00030527,30]
[330415173,1719356620389,-1000.0,0.00030527,30]
[330415174,1719356620414,-1000.0,0.00030527,30]
[330415175,1719356620440,-1268.08276,0.00030527,30]
[330415176,1719356620464,-153.931342,0.00030527,30]
[330415177,1719356620488,-153.931342,0.00030527,30]
[330415178,1719356620512,-250.000001,0.00030527,30]
[330415179,1719356623670,500.0,0.00030527,30]
[330415180,1719356624116,500.0,0.00030527,30]
[330415181,1719356625151,500.0,0.00030527,30]
[330415182,1719356625559,500.0,0.00030527,30]
[330415183,1719356625627,5593.51953232,0.00013083,2]
[330415184,1719356626003,500.0,0.00030527,30]
[330415185,1719356626493,500.0,0.00030527,30]
[330415186,1719356626866,500.0,0.00030527,30]
[330415187,1719356627893,500.0,0.00030527,30]
[330415188,1719356628408,500.0,0.00030527,30]
[330415189,1719356628816,500.0,0.00030527,30]
[330415190,1719356629283,500.0,0.00030527,30]
[330415191,1719356629869,500.0,0.00030527,30]
[330415192,1719356630668,500.0,0.00030527,30]
[330415193,1719356631105,500.0,0.00030527,30]
[330415194,1719356632174,392.24,0.00030527,30]
[330415195,1719356661467,232.0,0.00030527,30]
[330415196,1719356768238,150.0,0.00030527,30]
[330415197,1719356832814,1012.70730422,0.00014999,2]
[330415198,1719356865820,190.0,0.00030527,30]
[330415199,1719356866263,185.0,0.00030527,30]
[330415201,1719356911872,150.0,0.00030527,30]
[330415205,1719357011932,657.84738546,0.00014999,2]
[330415206,1719357031868,-349.0,0.00015189,2]
[330415208,1719357031880,-368.06476617,0.00015189,2]
[330415209,1719357031889,-383.13294364,0.00015552,2]
[330415210,1719357031899,-1761.62397759,0.000165,2]
[330415213,1719357031908,-150.0,0.000169,2]
[330415216,1719357031918,-1790.73024401,0.00016901,2]
[330415219,1719357031929,-1157.49476173,0.00016901,2]
[330415222,1719357031940,-3553.35923179,0.00016901,2]
[330415224,1719357031955,-538.88,0.00016901,2]
[330415226,1719357031967,-3361.8399999,0.00016901,2]
[330415229,1719357031978,-4654.44,0.00016901,2]
[330415230,1719357031990,-74.67306257,0.00016901,2]
[330415231,1719357031999,-664.47,0.00017165,2]
[330415232,1719357032018,-1.4393385,0.00017533,2]
[330415243,1719357032240,-153.5606615,0.00017533,2]
[330415244,1719357032250,-461.93383045,0.00017732,2]
[330415245,1719357032259,-177.89,0.00018757,2]
[330415246,1719357032268,-172.06586091,0.00018777,2]
[330415247,1719357032278,-250.0,0.00018793,2]
[330415248,1719357032288,-491.44327227,0.00018795,2]
[330415249,1719357032297,-1069.94736295,0.00018795,2]
[330415250,1719357032307,-153.71,0.00018819,2]
[330415251,1719357032316,-155.0,0.00018836,2]
[330415252,1719357032325,-165.65,0.00018837,2]
[330415253,1719357032334,-307.97977309,0.00018839,2]
[330415254,1719357032344,-250.0,0.0001884,2]
[330415255,1719357032354,-167.19,0.00018931,2]
[330415256,1719357032364,-1000.0,0.00018991,2]
[330415257,1719357032373,-2103.36686,0.00019178,2]
[330415258,1719357032383,-250.0,0.00019178,2]
[330415259,1719357032394,-622.0,0.000194,2]
[330415260,1719357032407,-2141.0,0.000194,2]
[330415261,1719357032417,-664.47,0.00019429,2]
[330415262,1719357032426,-853.06,0.00019447,2]
[330415263,1719357032436,-853.06,0.00019447,2]
[330415264,1719357032446,-441.48,0.00019447,2]
[330415265,1719357032455,-1000.0,0.000197,2]
[330415266,1719357032465,-1000.0,0.000198,2]
[330415267,1719357032476,-879.86346204,0.00019867,2]
[330415268,1719357032485,-1000.0,0.00019975,2]
[330415269,1719357032495,-500.0,0.00019975,2]
[330415270,1719357032504,-2310.81463448,0.0002,2]
[330415271,1719357033362,-3189.18536552,0.0002,2]
[330415272,1719357033372,-461.29191155,0.0002,2]
[330415273,1719357033385,-339.04058475,0.0002,7]
[330415274,1719357033400,-1900.99961047,0.0002,2]
[330415275,1719357033410,-161.93725227,0.0002,2]
[330415276,1719357033420,-1620.0,0.0002,2]
[330415277,1719357033430,-150.0,0.00020003,2]
[330415278,1719357033440,-150.0,0.00020005,2]
[330415279,1719357033450,-150.0,0.00020006,2]
[330415280,1719357033459,-150.0,0.00020024,2]
[330415281,1719357033471,-150.0,0.00020027,2]
[330415282,1719357033481,-150.0,0.00020034,2]
[330415283,1719357033491,-150.0,0.00020044,2]
[330415284,1719357033500,-150.0,0.00020064,2]
[330415285,1719357033510,-150.0,0.00020078,2]
[330415286,1719357033520,-150.0,0.00020082,2]
[330415287,1719357033529,-150.0,0.0002009,2]
[330415288,1719357033538,-150.0,0.0002009,2]
[330415289,1719357033548,-150.0,0.00020093,2]
[330415290,1719357033558,-150.0,0.00020096,2]
[330415291,1719357033568,-6588.17663554,0.000201,2]
[330415292,1719357033580,-336.22,0.000201,2]
[330415293,1719357033591,-995.87545876,0.000201,2]
[330415294,1719357033604,-1577.50775,0.000201,2]
[330415295,1719357033616,-781.72744129,0.000201,2]
[330415296,1719357033627,-453.99681642,0.000201,2]
[330415297,1719357033639,-3427.9205935,0.000201,2]
[330415298,1719357033651,-3406.33436546,0.000201,2]
[330415299,1719357033663,-7773.89917503,0.000201,2]
[330415300,1719357033672,-150.0,0.00020104,2]
[330415301,1719357033682,-418.51,0.0002011,2]
[330415302,1719357033692,-97.48380495,0.0002011,2]
[330415304,1719357037755,-1069.94736295,0.00018795,2]
[330415305,1719357037765,-755.57619505,0.0002011,2]
[330415306,1719357037776,-853.06,0.0002011,2]
[330415307,1719357037786,-418.51,0.0002011,2]
[330415308,1719357037796,-418.51,0.0002011,2]
[330415309,1719357037806,-853.06,0.0002011,2]
[330415310,1719357037816,-853.06,0.0002011,2]
[330415311,1719357037826,-418.51,0.0002011,2]
[330415312,1719357037835,-418.51,0.0002011,2]
[330415313,1719357037845,-853.06,0.0002011,2]
[330415314,1719357037857,-418.51,0.0002011,2]
[330415315,1719357037867,-853.06,0.0002011,2]
[330415316,1719357037876,-853.06,0.0002011,2]
[330415317,1719357037886,-418.51,0.0002011,2]
[330415318,1719357037896,-853.06,0.0002011,2]
[330415319,1719357037906,-418.51,0.0002011,2]
[330415320,1719357037916,-1855.53,0.0002011,2]
[330415321,1719357037926,-417.43,0.0002011,2]
[330415322,1719357037935,-150.0,0.00020115,2]
[330415323,1719357037945,-150.0,0.00020126,2]
[330415324,1719357037955,-150.0,0.00020126,2]
[330415325,1719357037964,-150.0,0.00020133,2]
[330415326,1719357037975,-125.85761893,0.00020133,2]
[330415327,1719357037987,-24.14238107,0.00020133,2]
[330415328,1719357037997,-744.20026228,0.0002014,2]
[330415329,1719357038008,-585.41820824,0.0002014,2]
[330415330,1719357038020,-773.74839948,0.0002014,2]
[330415331,1719357038030,-150.0,0.00020146,2]
[330415332,1719357038040,-150.0,0.0002015,2]
[330415333,1719357038049,-172.81449373,0.00020168,2]
[330415334,1719357038059,-4151.67304175,0.00020173,2]
[330415335,1719357038068,-490.0,0.000202,2]
[330415336,1719357038078,-1035.0141215,0.000202,2]
[330415337,1719357038090,-332.5,0.000202,2]
[330415339,1719357038103,-648.90916866,0.000202,2]
[330415340,1719357038113,-473.32433171,0.000202,2]
[330415341,1719357038124,-398.64828018,0.000202,2]
[330415342,1719357038160,-604.02738811,0.000202,2]
[330415343,1719357038170,-84.47261189,0.00020201,2]
[330415344,1719357038182,-65.52738811,0.00020201,2]
[330415345,1719357038192,-150.0,0.00020204,2]
[330415346,1719357038201,-150.0,0.00020212,2]
[330415347,1719357038211,-150.0,0.00020227,2]
[330415348,1719357038220,-150.0,0.00020229,2]
[330415349,1719357038230,-150.0,0.0002023,2]
[330415350,1719357038240,-150.0,0.00020232,2]
[330415351,1719357038250,-3023.35359891,0.00020236,2]
[330415352,1719357038260,-150.0,0.00020237,2]
[330415353,1719357038269,-150.0,0.00020238,2]
[330415354,1719357038279,-150.0,0.00020239,2]
[330415355,1719357038289,-150.0,0.00020243,2]
[330415356,1719357038299,-150.0,0.00020245,2]
[330415357,1719357038309,-150.0,0.00020248,2]
[330415358,1719357038319,-150.0,0.00020262,2]
[330415359,1719357038329,-150.0,0.00020268,2]
[330415360,1719357038338,-150.0,0.00020271,2]
[330415361,1719357038351,-62.4707328,0.00020272,2]
[330415362,1719357038364,-146.91026761,0.00020272,2]
[330415363,1719357038374,-5907.85263176,0.00020272,2]
[330415364,1719357038384,-4151.67304172,0.0002042,2]
[330415365,1719357038395,-163.19822534,0.00020447,2]
[330415366,1719357038406,-1536.0,0.000205,2]
[330415367,1719357038416,-202.49463357,0.0002052,2]
[330415368,1719357038428,-243.25,0.00020521,2]
[330415369,1719357038439,-150.0,0.00020521,2]
[330415370,1719357038449,-307.43,0.00020521,2]
[330415371,1719357038459,-150.0,0.00020521,2]
[330415372,1719357038469,-150.0,0.00020521,2]
[330415373,1719357038484,-153.2,0.00020521,2]
[330415374,1719357038495,-150.0,0.00020521,2]
[330415375,1719357038504,-527.79,0.00020521,2]
[330415376,1719357038514,-164.65,0.00020521,2]
[330415377,1719357038524,-423.79,0.00020521,2]
[330415378,1719357038534,-354.39,0.00020521,2]
[330415379,1719357038544,-693.0,0.0002054,2]
[330415380,1719357038554,-157.0,0.0002054,2]
[330415381,1719357038564,-200.6433428,0.00020547,2]
[330415382,1719357038575,-171.7,0.00020548,2]
[330415383,1719357038584,-196.17673017,0.00020592,2]
[330415384,1719357038594,-955.73097325,0.00020666,2]
[330415385,1719357038605,-155.0,0.00020666,2]
[330415386,1719357038615,-4151.67304172,0.00020667,2]
[330415387,1719357038625,-249.08661662,0.00020739,2]
[330415388,1719357038635,-404.75960712,0.0002074,2]
[330415389,1719357038644,-155.0,0.00020788,2]
[330415390,1719357038654,-1133.76952232,0.00020879,2]
[330415391,1719357038664,-4151.67304172,0.00020914,2]
[330415392,1719357038674,-708.0,0.00021,2]
[330415393,1719357038683,-1250.0,0.00021,2]
[330415394,1719357038693,-412.67,0.00021068,2]
[330415395,1719357038702,-3571.085,0.00021148,2]
[330415396,1719357038711,-4151.67304172,0.00021161,2]
[330415397,1719357038817,-346.03148912,0.00021166,2]
[330415398,1719357038827,-2507.7317,0.00021208,2]
[330415399,1719357038836,-173.83434328,0.00021229,2]
[330415400,1719357038846,-201.81023803,0.00021229,2]
[330415401,1719357038856,-150.0,0.00021229,2]
[330415402,1719357038865,-366.11090361,0.00021354,2]
[330415403,1719357038875,-574.91013422,0.00021355,2]
[330415404,1719357038887,-9.68481466,0.00021355,2]
[330415405,1719357038896,-1000.0,0.00021365,2]
[330415406,1719357038905,-1628.33075206,0.00021367,2]
[330415407,1719357038915,-418.51,0.00021368,2]
[330415408,1719357038924,-853.06,0.00021368,2]
[330415409,1719357038933,-853.06,0.00021368,2]
[330415410,1719357038943,-850.66,0.00021368,2]
[330415411,1719357038953,-2103.36687,0.0002139,2]
[330415412,1719357038962,-1166.38038788,0.00021408,2]
[330415413,1719357038974,-714.662132,0.00021408,2]
[330415414,1719357038985,-2270.63052184,0.00021408,2]
[330415415,1719357038995,-584.59494888,0.00021526,2]
[330415416,1719357039004,-753.9567776,0.00021644,2]
[330415417,1719357039015,-25.7032224,0.00021644,2]
[330415418,1719357039025,-4151.67304172,0.00021655,2]
[330415419,1719357039035,-200.00073663,0.00021686,2]
[330415420,1719357039044,-664.47,0.00021692,2]
[330415421,1719357039054,-584.59494888,0.00021696,2]
[330415422,1719357039063,-527.79,0.00021776,2]
[330415423,1719357039072,-414.34,0.00021776,2]
[330415424,1719357039082,-444.09,0.00021776,2]
[330415425,1719357039091,-250.0,0.00021777,2]
[330415426,1719357039101,-1000.0,0.00021784,2]
[330415427,1719357039110,-664.38805065,0.00021784,2]
[330415429,1719357039802,-335.61194935,0.00021784,2]
[330415430,1719357039812,-44.8229248,0.00021784,2]
[330415431,1719357039825,-850.24946448,0.00021784,2]
[330415432,1719357040051,-104.92761072,0.00021784,2]
[330415433,1719357040061,-463.2031959,0.00021784,2]
[330415434,1719357040072,-536.7968041,0.00021784,2]
[330415435,1719357040083,-717.03598441,0.00021784,2]
[330415436,1719357040095,-282.96401559,0.00021784,2]
[330415437,1719357040106,-1000.0,0.00021784,2]
[330415438,1719357040116,-584.59494888,0.00021867,2]
[330415439,1719357040125,-1571.08795933,0.00021902,2]
[330415440,1719357040137,-365.27595999,0.00021902,2]
[330415441,1719357040149,-381.20659986,0.00021902,2]
[330415442,1719357040162,-1834.10252254,0.00021902,2]
[330415443,1719357040171,-188.92,0.00021918,2]
[330415444,1719357040180,-1222.48,0.00021918,2]
[330415445,1719357040190,-166.66666666,0.00021999,2]
[330415446,1719357040199,-170.30790093,0.00022,4]
[330415447,1719357040208,-708.0,0.00022,2]
[330415448,1719357040217,-10000.0,0.00022,2]
[330415449,1719357040227,-1802.53437487,0.00022,2]
[330415450,1719357040238,-278.90148228,0.00022,2]
[330415451,1719357040250,-7918.56414285,0.00022,2]
[330415452,1719357040259,-10000.0,0.00022,2]
[330415453,1719357040269,-15329.82699404,0.00022,2]
[330415454,1719357040278,-10000.0,0.00022,2]
[330415455,1719357040288,-16299.01616421,0.00022,2]
[330415456,1719357040297,-10899.95299388,0.00022,2]
[330415457,1719357040310,-7529.81095036,0.00022,2]
[330415458,1719357040320,-10348.10254108,0.00022,2]
[330415459,1719357040329,-155.177234,0.00022007,2]
[330415460,1719357040339,-572.12138684,0.00022013,2]
[330415461,1719357040350,-584.59494888,0.00022037,2]
[330415462,1719357040360,-184.12837819,0.00022067,2]
[330415463,1719357040369,-150.97304623,0.00022067,2]
[330415464,1719357040379,-380.88167048,0.00022071,2]
[330415465,1719357040388,-256.00974718,0.00022071,2]
[330415466,1719357040402,-155.69335686,0.00022081,2]
[330415467,1719357040411,-166.66666666,0.00022128,2]
[330415468,1719357040421,-4151.67304172,0.00022149,2]
[330415469,1719357040431,-342.07,0.00022164,2]
[330415470,1719357040441,-584.59494888,0.00022208,2]
[330415471,1719357040451,-154.11083982,0.00022263,2]
[330415472,1719357040462,-190.29395068,0.00022277,2]
[330415473,1719357040471,-179.29478944,0.00022287,2]
[330415474,1719357040484,-350.0,0.00022324,2]
[330415475,1719357040495,-418.39,0.00022325,2]
[330415476,1719357040504,-167.42195523,0.00022354,2]
[330415477,1719357040513,-572.12138684,0.00022374,2]
[330415478,1719357040523,-584.59494888,0.00022378,2]
[330415479,1719357040533,-4151.67304172,0.00022396,2]